bitfinex-derivatives/quotes_BTCF0:USTF0_20250121
["timestamp","ask_amount","ask_price","bid_price","bid_amount"]
[1737480355466,0.189335,105680.0,105670.0,1.05757191]
[1737480356067,0.189335,105680.0,105670.0,1.0657083]
[1737480356270,0.27533336,105680.0,105670.0,1.0657083]
[1737480356564,0.63613336,105680.0,105670.0,0.5175623]
[1737480356860,0.63613336,105680.0,105670.0,0.50942591]
[1737480357469,0.63713336,105680.0,105670.0,0.51442591]
[1737480357668,0.190335,105680.0,105670.0,0.51442591]
[1737480357863,0.190335,105680.0,105670.0,0.557153]
[1737480357864,0.27633336,105680.0,105670.0,0.557153]
[1737480358060,0.27633336,105680.0,105670.0,0.797153]
[1737480358560,0.36053336,105680.0,105670.0,0.797153]
[1737480359360,0.36053336,105680.0,105670.0,0.557153]
[1737480359869,0.36053336,105680.0,105670.0,0.797153]
[1737480361562,0.50220252,105680.0,105670.0,0.797153]
[1737480361962,0.14266916,105680.0,105670.0,0.88315136]
[1737480362163,0.454987,105710.0,105670.0,0.78259836]
[1737480362362,0.454987,105710.0,105700.0,0.550099]
[1737480362363,0.2657,105710.0,105700.0,0.550099]
[1737480362573,0.1802,105710.0,105700.0,0.63609736]
[1737480362868,0.274758,105730.0,105720.0,0.189263]
[1737480363167,0.0897,105730.0,105720.0,0.63606136]
[1737480363374,0.4798197,105750.0,105740.0,0.189227]
[1737480363673,0.1978077,105750.0,105740.0,0.550027]
[1737480364671,0.2068077,105750.0,105740.0,0.551027]
[1737480364968,0.29280606,105750.0,105740.0,0.551027]
[1737480365170,0.29280606,105750.0,105740.0,0.791027]
[1737480365375,0.29580606,105750.0,105740.0,0.551027]
[1737480365561,0.48501506,105750.0,105740.0,0.551027]
[1737480366372,0.48501506,105750.0,105740.0,0.190227]
[1737480366564,0.48501506,105750.0,105740.0,0.001]
[1737480366764,0.28720736,105750.0,105740.0,0.001]
[1737480367273,0.28720736,105750.0,105740.0,0.190227]
[1737480367469,0.201209,105750.0,105740.0,0.551027]
[1737480367674,0.012,105750.0,105740.0,0.87702536]
[1737480368871,0.012,105750.0,105740.0,0.96302372]
[1737480369074,9.5e-07,105760.0,105750.0,0.72200572]
[1737480369275,0.1978077,105770.0,105760.0,0.189192]
[1737480369474,0.1978077,105770.0,105760.0,0.72009036]
[1737480370877,0.28306405,105790.0,105770.0,0.189166]
[1737480371175,0.28306405,105790.0,105780.0,0.189156]
[1737480371368,0.19706569,105790.0,105780.0,0.189156]
[1737480373174,0.29106405,105790.0,105780.0,0.189156]
[1737480373480,0.20506569,105790.0,105780.0,0.189156]
[1737480373678,0.19706569,105790.0,105780.0,0.189156]
[1737480373979,0.20806569,105790.0,105780.0,0.550956]
[1737480374177,0.20806569,105790.0,105780.0,0.63695436]
[1737480374178,0.01892469,105790.0,105780.0,0.63695436]
[1737480374479,0.01892469,105790.0,105780.0,0.550956]
[1737480377080,0.01892469,105790.0,105780.0,0.63695436]
[1737480377371,0.01892469,105790.0,105780.0,0.550956]
[1737480377979,0.01892469,105790.0,105780.0,0.63695436]
[1737480381488,0.011,105790.0,105780.0,0.63695436]
[1737480381673,0.011,105790.0,105780.0,0.87695436]
[1737480381874,0.011,105790.0,105780.0,0.96295272]
[1737480382980,0.1,105800.0,105780.0,0.96295272]
[1737480382981,0.1,105800.0,105790.0,0.189138]
[1737480383283,0.1,105800.0,105790.0,0.63593636]
[1737480383483,0.38579219,105830.0,105790.0,0.63593636]
[1737480383484,0.19671619,105830.0,105790.0,0.53279672]
[1737480383681,0.19671619,105830.0,105820.0,0.63588236]
[1737480384070,0.11251619,105830.0,105820.0,0.63588236]
[1737480384275,0.11251619,105830.0,105820.0,0.87588236]
[1737480385086,0.11551619,105830.0,105820.0,0.87588236]
[1737480385493,0.34873514,105860.0,105850.0,0.189031]
[1737480385681,0.34873514,105860.0,105850.0,0.63582936]
[1737480385990,0.26003514,105860.0,105850.0,0.63582936]
[1737480386999,0.092,105860.0,105850.0,0.63582936]
[1737480387288,0.097,105860.0,105850.0,0.190031]
[1737480387480,0.097,105860.0,105850.0,0.550831]
[1737480387481,0.286013,105860.0,105850.0,0.550831]
[1737480389702,0.097,105860.0,105850.0,0.550831]
[1737480389901,0.286013,105860.0,105850.0,0.550831]
[1737480390102,0.286013,105860.0,105850.0,0.55866966]
[1737480390994,0.097,105860.0,105850.0,0.55866966]
[1737480391294,0.097,105860.0,105850.0,0.64466802]
[1737480394000,0.37201136,105860.0,105850.0,0.00883866]
[1737480394309,0.59105236,105860.0,105820.0,0.549874]
[1737480394497,0.59105236,105860.0,105820.0,0.189074]
[1737480394498,0.189067,105830.0,105820.0,0.189074]
[1737480394896,0.17069836,105830.0,105810.0,0.36897465]
[1737480395199,0.27508236,105820.0,105810.0,0.00817465]
[1737480395405,0.189102,105810.0,105800.0,0.189115]
[1737480395606,0.27510036,105810.0,105800.0,0.18925695]
[1737480395803,0.189102,105810.0,105800.0,0.18925695]
[1737480396301,0.67861957,105810.0,105800.0,0.00014195]
[1737480396508,0.67861957,105810.0,105800.0,0.00114195]
[1737480396704,0.18912,105800.0,105790.0,0.00141761]
[1737480397005,0.67863757,105800.0,105790.0,0.00141761]
[1737480397508,0.85913757,105800.0,105790.0,0.00141761]
[1737480398808,0.73042,105800.0,105790.0,0.00141761]
[1737480399112,0.36962,105800.0,105790.0,0.19055561]
[1737480399512,0.73042,105800.0,105790.0,0.19055561]
[1737480399713,0.73542,105800.0,105790.0,0.19055561]
[1737480399916,0.82072,105800.0,105790.0,0.19055561]
[1737480400810,0.94943757,105800.0,105790.0,0.00141761]
[1737480401011,0.189138,105790.0,105780.0,0.00014195]
[1737480401214,0.189156,105780.0,105770.0,0.19753415]
[1737480401412,0.67867357,105780.0,105770.0,0.19746355]
[1737480401801,0.67867357,105780.0,105760.0,0.789985]
[1737480401802,0.48951757,105780.0,105760.0,0.789985]
[1737480402115,0.365874,105770.0,105760.0,0.549985]
[1737480402516,0.365874,105770.0,105760.0,0.55012695]
[1737480403216,0.365874,105770.0,105760.0,0.55112695]
[1737480404210,0.57209157,105770.0,105760.0,0.00514195]
[1737480404413,0.189192,105760.0,105750.0,0.549999]
[1737480405011,0.549992,105760.0,105750.0,0.189199]
[1737480405306,0.549992,105760.0,105750.0,0.19736449]
[1737480405510,0.189192,105760.0,105750.0,0.19736449]
[1737480405911,0.48951757,105760.0,105740.0,0.36094195]
[1737480406117,0.48951757,105760.0,105740.0,0.00014195]
[1737480406118,0.31792757,105750.0,105740.0,0.00014195]
[1737480406311,0.18921,105750.0,105740.0,0.00014195]
[1737480407021,0.18921,105750.0,105740.0,0.55016895]
[1737480407214,0.003,105750.0,105740.0,0.48965952]
[1737480407415,0.003,105750.0,105740.0,0.67888652]
[1737480407615,0.00014195,105760.0,105750.0,0.18921]
[1737480407816,0.00014195,105760.0,105750.0,0.67872757]
[1737480408512,0.00014195,105760.0,105750.0,0.3608]
[1737480408720,0.001,105750.0,105710.0,0.5155]
[1737480408913,0.12871757,105720.0,105710.0,0.704776]
[1737480409115,0.3608,105740.0,105720.0,0.189256]
[1737480409116,0.67874657,105740.0,105720.0,0.189256]
[1737480409513,0.189229,105740.0,105720.0,0.550056]
[1737480409719,0.189229,105740.0,105730.0,0.550045]
[1737480409921,0.31794657,105740.0,105730.0,0.189245]
[1737480410125,0.31808852,105740.0,105730.0,0.550045]
[1737480410318,0.32108852,105740.0,105730.0,0.790045]
[1737480410519,0.32108852,105740.0,105730.0,0.429245]
[1737480412319,0.189245,105730.0,105720.0,0.18940195]
[1737480412521,0.31796257,105730.0,105720.0,0.55020195]
[1737480412725,0.189245,105730.0,105720.0,0.55020195]
[1737480413425,0.32009452,105740.0,105730.0,0.189245]
[1737480413627,0.31809452,105740.0,105730.0,0.189245]
[1737480414928,0.31809452,105740.0,105730.0,0.429245]
[1737480415128,0.31909452,105740.0,105730.0,0.429245]
[1737480415630,0.19037695,105740.0,105730.0,0.429245]
[1737480415929,0.19237695,105740.0,105730.0,0.429245]
[1737480416429,0.00314195,105740.0,105730.0,0.429245]
[1737480416630,0.00314195,105740.0,105730.0,0.504345]
[1737480417319,0.00314195,105740.0,105730.0,0.51253797]
[1737480417524,0.19236895,105740.0,105730.0,0.51253797]
[1737480419131,0.32108652,105740.0,105730.0,0.51253797]
[1737480419331,0.68188652,105740.0,105730.0,0.19743797]
[1737480421023,0.19236895,105740.0,105730.0,0.19743797]
[1737480421732,0.55316895,105740.0,105730.0,0.19743797]
[1737480421926,0.68188652,105740.0,105730.0,0.19743797]
[1737480422228,0.189245,105730.0,105720.0,0.00014195]
[1737480422420,0.189245,105730.0,105700.0,0.10846058]
[1737480422421,0.189281,105710.0,105700.0,0.10846058]
[1737480422619,0.67879857,105710.0,105700.0,0.10008001]
[1737480423536,0.68079857,105710.0,105700.0,0.10008001]
[1737480425129,0.68079857,105710.0,105700.0,0.1]
[1737480425334,1.04159857,105710.0,105700.0,0.1]
[1737480426330,1.04988412,105710.0,105700.0,0.1]
[1737480427133,0.189299,105700.0,105690.0,9.464e-05]
[1737480427435,0.83711657,105700.0,105690.0,9.464e-05]
[1737480428330,0.708399,105700.0,105690.0,9.464e-05]
[1737480428537,0.708399,105700.0,105690.0,0.18941164]
[1737480428729,0.83711657,105700.0,105690.0,0.18941164]
[1737480429224,0.83711657,105700.0,105690.0,9.464e-05]
[1737480430232,0.83811657,105700.0,105690.0,9.464e-05]
[1737480430533,0.83811657,105700.0,105690.0,0.18941164]
[1737480431134,0.83811657,105700.0,105690.0,0.42941164]
[1737480431328,0.001,105700.0,105690.0,0.79021164]
[1737480431539,0.001,105700.0,105690.0,0.91892921]
[1737480432030,0.001,105700.0,105690.0,0.79021164]
[1737480432931,0.6345788,105720.0,105710.0,0.189281]
[1737480433434,0.2737788,105720.0,105710.0,0.189281]
[1737480433635,0.6345788,105720.0,105710.0,0.189281]
[1737480434041,0.76829637,105720.0,105710.0,0.190281]
[1737480434931,0.77029637,105720.0,105710.0,0.001]
[1737480435235,0.81464309,105720.0,105710.0,0.001]
[1737480436031,0.92537709,105720.0,105690.0,9.464e-05]
[1737480436334,0.67881657,105700.0,105690.0,9.464e-05]
[1737480437029,0.67881657,105700.0,105690.0,0.00109464]
[1737480437330,1.03961657,105700.0,105690.0,0.00109464]
[1737480437546,1.03961657,105700.0,105690.0,9.464e-05]
[1737480437724,1.04161657,105700.0,105690.0,9.464e-05]
[1737480439228,1.11471657,105700.0,105690.0,9.464e-05]
[1737480442032,1.12310574,105700.0,105690.0,9.464e-05]
[1737480443738,1.12810574,105700.0,105690.0,9.464e-05]
[1737480444336,1.12710574,105700.0,105690.0,9.464e-05]
[1737480444728,0.93780674,105700.0,105670.0,0.18935]
[1737480444941,0.67885257,105680.0,105670.0,0.18935]
[1737480446638,0.67985257,105680.0,105670.0,0.18935]
[1737480447341,0.551135,105680.0,105670.0,0.18935]
[1737480447637,0.190335,105680.0,105670.0,0.18935]
[1737480448043,0.551135,105680.0,105670.0,0.18935]
[1737480448643,0.67985257,105680.0,105670.0,0.18935]
[1737480449441,0.190335,105680.0,105670.0,0.55015]
[1737480449740,0.001,105680.0,105670.0,0.67886757]
[1737480449945,0.001,105680.0,105670.0,0.55015]
[1737480451147,0.190335,105680.0,105670.0,0.18935]
[1737480451548,0.551135,105680.0,105670.0,0.18935]
[1737480451748,0.190335,105680.0,105670.0,0.55015]
[1737480453056,0.001,105680.0,105670.0,0.55015]
[1737480453248,0.001,105680.0,105670.0,0.67886757]
[1737480453650,0.30229932,105700.0,105670.0,0.67886757]
[1737480453651,0.11299832,105700.0,105670.0,0.56999642]
[1737480453961,0.11299832,105700.0,105690.0,0.910917]
[1737480454151,0.14016213,105700.0,105690.0,1.150917]
[1737480454857,0.14416213,105700.0,105690.0,1.150917]
[1737480456161,0.14416213,105700.0,105690.0,1.27963457]
[1737480456355,0.14016213,105700.0,105690.0,1.27963457]
[1737480456562,0.14116213,105700.0,105690.0,1.27963457]
[1737480456763,0.14116213,105700.0,105690.0,1.36003457]
[1737480457063,0.14116213,105700.0,105690.0,1.36203457]
[1737480457462,0.001,105700.0,105690.0,1.36203457]
[1737480457759,0.00014195,105710.0,105700.0,0.189299]
[1737480458068,0.11317141,105720.0,105700.0,0.48951757]
[1737480458362,0.11317141,105720.0,105710.0,0.67879857]
[1737480458662,0.409615,105750.0,105740.0,0.189227]
[1737480458963,0.409615,105750.0,105740.0,0.550027]
[1737480458964,0.189215,105750.0,105740.0,0.550027]
[1737480460466,0.196215,105750.0,105740.0,0.550027]
[1737480461063,0.006,105750.0,105740.0,0.550027]
[1737480461265,0.1756426,105750.0,105740.0,0.550027]
[1737480462362,0.1736426,105750.0,105740.0,0.550027]
[1737480462565,0.1756426,105750.0,105740.0,0.550027]
[1737480463865,0.1756426,105750.0,105740.0,0.67874457]
[1737480464367,0.1756426,105750.0,105740.0,0.91874457]
[1737480464568,0.1756426,105750.0,105740.0,0.790027]
[1737480464870,0.006,105750.0,105740.0,0.790027]
[1737480466270,0.006,105750.0,105740.0,0.550027]
[1737480466472,0.32392657,105750.0,105740.0,0.189227]
[1737480466676,0.32392657,105750.0,105730.0,0.35356811]
[1737480466677,0.189227,105740.0,105730.0,0.35356811]
[1737480467064,0.31794457,105740.0,105730.0,0.00014195]
[1737480467270,0.75434457,105740.0,105730.0,0.00014195]
[1737480468175,0.75534457,105740.0,105730.0,0.00014195]
[1737480470867,0.75534457,105740.0,105730.0,0.18938695]
[1737480472074,1.06595974,105740.0,105730.0,0.18938695]
[1737480476187,0.75534457,105740.0,105730.0,0.18938695]
[1737480479778,0.71258513,105740.0,105730.0,0.19438695]
[1737480480377,0.8252539,105740.0,105730.0,0.19438695]
[1737480483380,0.8535577,105740.0,105730.0,0.19438695]
[1737480487175,0.4927577,105740.0,105730.0,0.19438695]
[1737480487380,0.8535577,105740.0,105730.0,0.19438695]
[1737480488879,0.8535577,105740.0,105730.0,0.00514195]
[1737480489173,0.8535577,105740.0,105730.0,0.19436895]
[1737480490591,0.8535577,105740.0,105730.0,0.00514195]
[1737480490886,0.189262,105710.0,105700.0,0.189278]
[1737480491086,0.27522013,105710.0,105700.0,0.550078]
[1737480492083,0.189262,105710.0,105700.0,0.550078]
[1737480492489,0.18939395,105720.0,105710.0,0.189262]
[1737480492689,0.18939395,105720.0,105710.0,0.550062]
[1737480493980,0.18939395,105720.0,105710.0,0.552062]
[1737480494791,0.18939395,105720.0,105710.0,0.553062]
[1737480495493,0.44409785,105720.0,105710.0,0.553062]
[1737480496789,0.25484585,105720.0,105710.0,0.553062]
[1737480496993,0.25484585,105720.0,105710.0,0.63902013]
[1737480497188,0.25484585,105720.0,105710.0,0.553062]
[1737480497492,0.53004798,105720.0,105710.0,0.553062]
[1737480497988,0.53004798,105720.0,105710.0,0.56322029]
[1737480498290,0.25484585,105720.0,105710.0,0.64917842]
[1737480498884,0.11334368,105720.0,105710.0,0.64917842]
[1737480499085,0.09647698,105720.0,105710.0,0.68230642]
[1737480499291,0.09647698,105720.0,105710.0,0.64917842]
[1737480500691,0.09647698,105720.0,105710.0,0.56322029]
[1737480501191,0.28572098,105720.0,105710.0,0.59634581]
[1737480501399,0.37167911,105720.0,105710.0,0.56322029]
[1737480502483,0.09647698,105720.0,105710.0,0.56322029]
[1737480502879,0.33533608,105730.0,105710.0,0.76587684]
[1737480503084,0.33533608,105730.0,105720.0,0.550044]
[1737480504094,0.33633608,105730.0,105720.0,0.550044]
[1737480504393,0.33633608,105730.0,105720.0,0.609444]
[1737480504796,0.19037795,105730.0,105720.0,0.609444]
[1737480504998,0.00114195,105730.0,105720.0,0.726344]
[1737480505292,0.19036795,105730.0,105720.0,0.726344]
[1737480505693,0.27632608,105730.0,105720.0,0.365544]
[1737480505896,0.41782825,105730.0,105720.0,0.726344]
[1737480508196,0.33187012,105730.0,105720.0,0.365544]
[1737480508891,0.14264412,105730.0,105720.0,0.365544]
[1737480509096,0.14264412,105730.0,105720.0,0.726344]
[1737480509298,0.14264412,105730.0,105720.0,0.81230213]
[1737480509487,0.14264412,105730.0,105720.0,0.89826026]
[1737480509693,0.06971705,105740.0,105730.0,0.27518413]
[1737480509998,0.06971705,105740.0,105730.0,0.66910433]
[1737480510794,0.06971705,105740.0,105730.0,0.550026]
[1737480510992,0.07171705,105740.0,105730.0,0.66910418]
[1737480511298,0.07571705,105740.0,105730.0,0.87598413]
[1737480513494,0.006,105740.0,105730.0,1.04394922]
[1737480514497,0.006,105740.0,105730.0,1.05452457]
[1737480514693,0.00014195,105750.0,105740.0,0.189208]
[1737480514888,0.00014195,105750.0,105740.0,0.63596613]
[1737480516604,0.00014195,105750.0,105740.0,0.87596613]
[1737480516901,0.00414195,105750.0,105740.0,0.87596613]
[1737480518897,9.5e-07,105750.0,105740.0,0.87596613]
[1737480519104,0.1182,105780.0,105770.0,0.189155]
[1737480519301,0.1182,105780.0,105770.0,0.910755]
[1737480520908,0.1252,105780.0,105770.0,0.911755]
[1737480522611,0.007,105780.0,105770.0,0.99771313]
[1737480522907,1e-06,105780.0,105770.0,0.99771313]
[1737480523695,1e-06,105780.0,105770.0,1.38367126]
[1737480523905,0.00014195,105790.0,105780.0,0.189137]
[1737480523906,9.5e-07,105790.0,105780.0,0.189137]
[1737480524107,0.1,105800.0,105790.0,0.189119]
[1737480524411,0.1,105800.0,105790.0,0.63587713]
[1737480524611,0.1,105800.0,105790.0,0.549919]
[1737480524801,0.37505913,105800.0,105790.0,0.549919]
[1737480526503,0.37505913,105800.0,105780.0,0.55007095]
[1737480526504,0.189119,105790.0,105780.0,0.55007095]
[1737480526704,0.37497713,105790.0,105780.0,0.55007095]
[1737480526911,0.37797713,105790.0,105780.0,0.55007095]
[1737480527602,0.37797713,105790.0,105780.0,0.36294195]
[1737480527799,0.63561626,105790.0,105760.0,0.16796509]
[1737480528006,0.27511313,105770.0,105760.0,0.16796509]
[1737480528704,0.27511313,105770.0,105760.0,0.35713809]
[1737480529411,0.18928395,105780.0,105770.0,0.189155]
[1737480529598,0.27524208,105780.0,105770.0,0.189155]
[1737480529800,0.3180994,105780.0,105770.0,0.189155]
[1737480530897,0.3705994,105780.0,105770.0,0.190155]
[1737480532506,0.3705994,105780.0,105770.0,0.550955]
[1737480532706,0.05264195,105780.0,105770.0,0.550955]
[1737480533719,0.05264195,105780.0,105770.0,0.190155]
[1737480533720,0.24177895,105780.0,105770.0,0.190155]
[1737480534023,0.3705944,105780.0,105770.0,0.190155]
[1737480536416,0.3705944,105780.0,105770.0,0.550955]
[1737480536417,0.05264195,105780.0,105770.0,0.550955]
[1737480536612,0.05264195,105780.0,105770.0,0.67977045]
[1737480536804,0.05264195,105780.0,105770.0,0.550955]
[1737480540115,0.05264195,105780.0,105770.0,0.790955]
[1737480541113,0.05264195,105780.0,105770.0,0.91977045]
[1737480541322,0.00014195,105780.0,105770.0,0.91977045]
[1737480542909,0.00014195,105780.0,105770.0,0.93010591]
[1737480547924,0.00014195,105780.0,105770.0,0.96321157]
[1737480548428,0.00014195,105780.0,105770.0,0.93010591]
[1737480548924,0.00014195,105780.0,105770.0,0.80129046]
[1737480549123,0.18927895,105780.0,105770.0,0.20049046]
[1737480549322,0.3180944,105780.0,105770.0,0.001]
[1737480549531,0.4217944,105780.0,105770.0,0.001]
[1737480550717,0.31797045,105770.0,105760.0,0.16796509]
[1737480551112,0.67877045,105770.0,105760.0,0.16796509]
[1737480551316,0.189173,105760.0,105750.0,0.22409541]
[1737480551519,0.8076039,105760.0,105750.0,0.06389541]
[1737480551714,0.189191,105750.0,105740.0,0.61587201]
[1737480551913,0.72187794,105750.0,105740.0,0.61587201]
[1737480552629,0.63593447,105750.0,105740.0,0.189208]
[1737480553922,0.63593447,105750.0,105740.0,0.190208]
[1737480554320,0.189191,105750.0,105740.0,0.190208]
[1737480554519,0.27513447,105750.0,105740.0,0.190208]
[1737480556029,0.28557069,105750.0,105740.0,0.190208]
[1737480556423,0.37151416,105750.0,105740.0,0.190208]
[1737480556626,0.51279625,105750.0,105740.0,0.190208]
[1737480557222,0.3608,105730.0,105650.0,0.75271856]
[1737480557424,0.3608,105690.0,105680.0,0.46924382]
[1737480557627,0.550098,105690.0,105680.0,0.27994182]
[1737480557929,0.550098,105690.0,105680.0,0.46925782]
[1737480558321,0.63604147,105690.0,105680.0,0.46925782]
[1737480558725,0.63604147,105690.0,105680.0,0.47959655]
[1737480559630,0.63604147,105690.0,105680.0,0.29028055]
[1737480559834,0.67914264,105690.0,105680.0,0.29128055]
[1737480561234,0.67914264,105690.0,105680.0,0.29028055]
[1737480562329,0.67914264,105690.0,105680.0,0.01433873]
[1737480563029,0.67914264,105690.0,105680.0,0.01133873]
[1737480563230,0.67914264,105690.0,105680.0,0.25133873]
[1737480563430,0.67914264,105690.0,105680.0,0.01133873]
[1737480564029,0.67914264,105690.0,105680.0,0.001]
[1737480564931,0.189316,105680.0,105670.0,0.00014195]
[1737480565229,0.80820528,105680.0,105670.0,0.00014195]
[1737480565932,0.67916064,105680.0,105670.0,0.00114195]
[1737480566136,0.67916064,105680.0,105670.0,0.00214195]
[1737480567539,0.67916064,105680.0,105670.0,0.00114195]
[1737480568938,0.12904464,105690.0,105670.0,0.36194195]
[1737480569134,0.68956125,105700.0,105690.0,0.189298]
[1737480569640,0.67927059,105700.0,105690.0,0.189298]
[1737480569937,0.67927059,105700.0,105690.0,0.287398]
[1737480572340,0.68327059,105700.0,105690.0,0.287398]
[1737480572944,0.67927059,105700.0,105690.0,0.287398]
[1737480576348,0.55022595,105700.0,105690.0,0.287398]
[1737480579050,0.67927059,105700.0,105690.0,0.0981]
[1737480579845,0.67927059,105700.0,105690.0,0.287398]
[1737480580148,0.63623025,105700.0,105690.0,0.287398]
[1737480580345,0.63723025,105700.0,105690.0,0.287398]
[1737480580545,0.64023025,105700.0,105690.0,0.287398]
[1737480581046,0.36394195,105700.0,105690.0,0.52288795]
[1737480581349,0.27842625,105700.0,105690.0,0.52288795]
[1737480581542,0.63922625,105700.0,105690.0,0.287398]
[1737480582150,0.63922625,105700.0,105690.0,0.527398]
[1737480582633,0.63622625,105700.0,105690.0,0.287398]
[1737480584244,0.63622625,105700.0,105690.0,0.29771083]
[1737480585949,0.63622625,105700.0,105690.0,0.10841283]
[1737480586251,0.63622625,105700.0,105690.0,0.287398]
[1737480587951,0.55022195,105700.0,105690.0,0.287398]
[1737480588156,0.55022195,105700.0,105690.0,0.52288795]
[1737480588157,0.74681973,105700.0,105690.0,0.52288795]
[1737480588847,0.38601973,105700.0,105690.0,0.52288795]
[1737480589048,0.58808639,105710.0,105700.0,0.18928]
[1737480589049,0.14128209,105710.0,105700.0,0.18928]
[1737480589242,0.16905046,105720.0,105710.0,0.189262]
[1737480589447,0.14042991,105720.0,105710.0,0.6360663]
[1737480589642,0.48065405,105750.0,105720.0,0.04731]
[1737480589847,0.48065405,105750.0,105740.0,0.6360123]
[1737480590252,0.48065405,105750.0,105740.0,0.87150225]
[1737480591254,0.48065405,105750.0,105740.0,1.11150225]
[1737480591656,0.00014195,105760.0,105750.0,0.18919]
[1737480591850,0.00014195,105760.0,105750.0,0.54999]
[1737480592051,0.00014195,105760.0,105750.0,0.78547995]
[1737480593550,0.44694625,105760.0,105750.0,0.42467995]
[1737480593746,0.67997945,105760.0,105740.0,0.70448151]
[1737480594356,0.68297945,105760.0,105740.0,0.70448151]
[1737480594855,0.32217945,105760.0,105750.0,0.18919]
[1737480595648,0.68297945,105760.0,105750.0,0.18919]
[1737480597446,0.67997945,105760.0,105750.0,0.18919]
[1737480597652,0.68297945,105760.0,105750.0,0.18919]
[1737480599049,0.54110245,105760.0,105730.0,0.18935595]
[1737480599248,0.189208,105740.0,105730.0,0.18935595]
[1737480599755,0.550008,105740.0,105730.0,0.4248459]
[1737480599957,0.6788735,105740.0,105730.0,0.00014195]
[1737480600343,0.189208,105740.0,105730.0,0.18936795]
[1737480600552,0.189208,105740.0,105730.0,0.4248579]
[1737480600961,0.550008,105740.0,105730.0,0.2366319]
[1737480601349,0.550008,105740.0,105730.0,0.19036795]
[1737480601555,0.6788735,105740.0,105730.0,0.19436795]
[1737480602856,0.550008,105740.0,105730.0,0.19436795]
[1737480603357,0.189208,105740.0,105730.0,0.19436795]
[1737480604055,0.6788735,105740.0,105730.0,0.00514195]
[1737480604456,0.7250735,105740.0,105730.0,0.00514195]
[1737480606251,0.189244,105720.0,105710.0,0.189256]
[1737480606460,0.189262,105710.0,105700.0,0.429274]
[1737480606645,0.189262,105710.0,105700.0,0.189274]
[1737480606646,0.6789275,105710.0,105700.0,0.189274]
[1737480606850,0.18928,105700.0,105690.0,0.60833833]
[1737480607047,0.3181455,105700.0,105690.0,0.48753833]
[1737480607645,0.3181455,105700.0,105690.0,0.20103833]
[1737480608359,0.3191455,105700.0,105690.0,0.19970578]
[1737480608554,0.6799455,105700.0,105690.0,0.01041878]
[1737480608759,0.7274455,105700.0,105690.0,0.01041878]
[1737480609060,0.7274455,105700.0,105690.0,0.009]
[1737480609558,0.7274455,105700.0,105690.0,0.013]
[1737480611259,0.23778,105700.0,105690.0,0.202298]
[1737480611661,0.19028,105700.0,105690.0,0.202298]
[1737480612047,0.18928,105700.0,105690.0,0.192298]
[1737480612247,0.18928,105700.0,105690.0,0.193298]
[1737480613664,0.27527526,105700.0,105690.0,0.433298]
[1737480614255,0.27527526,105700.0,105690.0,0.193298]
[1737480616952,0.27527526,105700.0,105690.0,0.004]
[1737480617164,0.63607526,105700.0,105690.0,0.004]
[1737480622766,0.189298,105690.0,105680.0,0.00014195]
[1737480623062,0.76528852,105690.0,105680.0,0.00014195]
[1737480623263,0.67929326,105690.0,105680.0,0.00014195]
[1737480624166,0.68029326,105690.0,105680.0,0.00514195]
[1737480624662,0.68029326,105690.0,105680.0,0.00714195]
[1737480625956,0.190298,105690.0,105680.0,0.19645795]
[1737480626460,0.27629326,105690.0,105680.0,0.19645795]
[1737480626661,0.36094195,105710.0,105680.0,0.68942716]
[1737480626866,0.18940695,105710.0,105700.0,0.18928]
[1737480627367,0.27540221,105710.0,105700.0,0.23428]
[1737480627571,0.27540221,105710.0,105700.0,0.47428]
[1737480627868,0.27540221,105710.0,105690.0,0.275792]
[1737480627869,0.75794642,105710.0,105690.0,0.275792]
[1737480628071,0.27527526,105700.0,105690.0,0.275792]
[1737480628363,0.67195116,105710.0,105700.0,0.18928]
[1737480628364,0.31115116,105710.0,105700.0,0.18928]
[1737480628558,0.31115116,105710.0,105700.0,0.63607526]
[1737480628759,0.31115116,105710.0,105700.0,0.87156521]
[1737480628973,0.31115116,105710.0,105700.0,0.78556995]
[1737480629381,0.58640842,105710.0,105700.0,0.42476995]
[1737480629974,0.50041316,105710.0,105700.0,0.42476995]
[1737480630182,0.31115116,105710.0,105700.0,0.78556995]
[1737480630377,0.31115116,105710.0,105700.0,0.87156521]
[1737480630880,0.31115116,105710.0,105700.0,0.78556995]
[1737480631274,0.31115116,105710.0,105700.0,0.79619461]
[1737480631675,0.31115116,105710.0,105700.0,0.88218987]
[1737480631876,0.00114195,105710.0,105700.0,0.88218987]
[1737480632283,0.00114195,105710.0,105700.0,0.79619461]
[1737480634279,0.00114195,105710.0,105700.0,0.88218987]
[1737480634581,0.16908479,105740.0,105730.0,0.189226]
[1737480634791,0.19712247,105760.0,105750.0,0.18919]
[1737480634994,0.19712247,105760.0,105750.0,0.63598526]
[1737480635177,0.19712247,105760.0,105750.0,0.54999]
[1737480635379,0.69847987,105760.0,105750.0,0.54999]
[1737480636577,0.69847987,105760.0,105750.0,0.18919]
[1737480636777,0.69847987,105760.0,105740.0,0.47314295]
[1737480636778,0.18919,105750.0,105740.0,0.47314295]
[1737480637179,0.27518526,105750.0,105740.0,0.47314295]
[1737480638086,0.27518526,105750.0,105740.0,0.23314295]
[1737480638490,0.18919,105750.0,105740.0,0.23314295]
[1737480638880,0.87010787,105760.0,105740.0,0.04394195]
[1737480639080,0.42331261,105760.0,105750.0,0.18919]
[1737480639788,0.67970321,105770.0,105750.0,0.18919]
[1737480640283,0.003,105760.0,105750.0,0.18919]
[1737480640882,0.001,105760.0,105750.0,0.54999]
[1737480641083,0.001,105760.0,105750.0,0.55099]
[1737480641593,0.27916726,105760.0,105750.0,0.18919]
[1737480641890,0.63996726,105760.0,105750.0,0.18919]
[1737480642089,0.18919,105750.0,105740.0,0.24363592]
[1737480642393,0.27518526,105750.0,105740.0,0.24363592]
[1737480644193,0.27517426,105760.0,105740.0,0.05443992]
[1737480644395,0.27517426,105760.0,105750.0,0.18919]
[1737480644893,0.189179,105760.0,105750.0,0.18919]
[1737480645094,0.549979,105760.0,105750.0,0.18919]
[1737480645293,0.189179,105760.0,105750.0,0.18919]
[1737480645497,0.63697426,105760.0,105750.0,0.18919]
[1737480646387,0.63997426,105760.0,105750.0,0.18919]
[1737480647396,0.27917426,105760.0,105750.0,0.18919]
[1737480650097,0.63997426,105760.0,105750.0,0.18919]
[1737480650282,0.27917426,105760.0,105750.0,0.18919]
[1737480650686,0.63997426,105760.0,105750.0,0.18919]
[1737480651395,0.18919,105750.0,105740.0,0.47314295]